bitfinex-derivatives/quotes_SOLF0:USTF0_20250923
["timestamp","ask_amount","ask_price","bid_price","bid_amount"]
[1758644742074,123.8898,219.39,219.32,4.1009]
[1758644742075,112.22,219.39,219.31,2.02063848]
[1758644742276,7.57,219.38,219.31,2.02063848]
[1758644742675,7.57,219.35,219.31,2.02063848]
[1758644742876,7.57,219.35,219.31,9.54063848]
[1758644743675,7.57,219.37,219.33,7.52]
[1758644743878,7.57,219.37,219.34,2.02063848]
[1758644744275,7.57,219.36,219.34,2.02063848]
[1758644744873,112.22,219.39,219.34,2.02063848]
[1758644745480,7.57,219.38,219.34,2.02063848]
[1758644745682,4.0995,219.4,219.34,2.02063848]
[1758644745980,119.77,219.39,219.34,9.54063848]
[1758644746680,119.77,219.39,219.34,7.52]
[1758644746979,119.77,219.39,219.34,11.6205]
[1758644747180,119.77,219.39,219.34,4.1005]
[1758644747381,119.77,219.39,219.35,7.52]
[1758644747678,7.57,219.38,219.35,7.52]
[1758644747879,7.57,219.38,219.34,4.1005]
[1758644749079,112.2,219.39,219.34,4.1005]
[1758644749574,11.67,219.38,219.32,10.67103694]
[1758644749771,112.2,219.39,219.28,3.15103694]
[1758644749975,175.9761,219.39,219.24,7.52]
[1758644750180,7.57,219.32,219.26,4.1021]
[1758644750787,11.6712,219.32,219.24,10.67103694]
[1758644752179,4.1014,219.31,219.24,14.77343694]
[1758644752378,7.57,219.33,219.23,87.04317644]
[1758644752584,7.57,219.31,219.19,7.52]
[1758644753183,7.09,219.25,219.19,7.52]
[1758644753885,7.09,219.25,219.19,11.6234]
[1758644755392,112.18,219.29,219.22,7.71]
[1758644755782,112.18,219.29,219.23,4.1027]
[1758644756589,119.27,219.29,219.23,4.1027]
[1758644758789,119.27,219.29,219.22,7.71]
[1758644759686,123.3718,219.29,219.22,7.71]
[1758644759887,123.3718,219.29,219.19,3.15103694]
[1758644759888,119.27,219.29,219.19,3.15103694]
[1758644760288,4.102,219.27,219.2,4.1033]
[1758644760494,7.09,219.26,219.2,4.1033]
[1758644761190,7.09,219.26,219.21,4.1029]
[1758644761499,7.09,219.3,219.21,7.71]
[1758644762091,7.09,219.3,219.25,4.1023]
[1758644762390,7.09,219.3,219.26,7.71]
[1758644762595,7.09,219.31,219.26,7.71]
[1758644762787,7.09,219.31,219.25,4.1023]
[1758644763994,7.09,219.31,219.22,10.86103694]
[1758644763995,5.05129876,219.37,219.24,63.8156]
[1758644764200,7.09,219.36,219.26,10.86103694]
[1758644765499,7.09,219.36,219.3,4.1012]
[1758644766797,7.09,219.36,219.23,3.15103694]
[1758644767098,4.1005,219.35,219.24,7.71]
[1758644767292,7.09,219.34,219.24,7.71]
[1758644768095,11.1908,219.34,219.24,7.71]
[1758644769397,7.09,219.34,219.19,7.71]
[1758644769595,10.24103694,219.34,219.19,7.71]
[1758644770096,7.09,219.28,219.21,4.1031]
[1758644770891,4.102,219.27,219.19,7.71]
[1758644771997,4.102,219.27,219.19,11.8133]
[1758644772796,7.54,219.25,219.16,4.104]
[1758644772998,7.54,219.25,219.14,7.19]
[1758644773800,4.103,219.22,219.14,7.19]
[1758644774000,7.54,219.21,219.13,4.1044]
[1758644774200,7.54,219.21,219.1,7.19]
[1758644774800,7.54,219.18,219.1,7.19]
[1758644775902,8.2023357,219.24,219.1,7.19]
[1758644775903,7.54,219.23,219.11,10.34103694]
[1758644776097,7.54,219.22,219.11,10.34103694]
[1758644776305,7.54,219.22,219.11,7.19]
[1758644776804,100.55695111,219.23,219.07,3.15103694]
[1758644777012,7.54,219.19,219.07,3.15103694]
[1758644777807,11.6436,219.19,219.08,4.1054]
[1758644778112,11.6436,219.19,219.07,3.15103694]
[1758644779111,7.54,219.19,219.09,7.19]
[1758644779516,7.54,219.22,219.12,7.19]
[1758644780010,7.54,219.22,219.15,4.104]
[1758644781611,7.54,219.26,219.17,4.1038]
[1758644781814,108.64786307,219.26,219.17,4.1038]
[1758644782213,7.54,219.24,219.14,4.1042]
[1758644782409,7.54,219.24,219.12,7.19]
[1758644783512,7.54,219.24,219.15,7.24]
[1758644784419,7.54,219.24,219.19,11.3434]
[1758644784620,7.54,219.24,219.2,7.24]
[1758644785819,7.54,219.24,219.21,4.1031]
[1758644786918,7.54,219.24,219.2,7.24]
[1758644787118,13.39947098,219.28,219.19,4.1034]
[1758644787326,7.72,219.27,219.14,7.24]
[1758644787521,7.72,219.25,219.17,4.1037]
[1758644787823,7.72,219.25,219.16,7.24]
[1758644789522,7.72,219.29,219.19,7.24]
[1758644790120,7.72,219.29,219.22,4.1029]
[1758644791322,7.72,219.29,219.23,4.1025]
[1758644793325,7.72,219.29,219.24,11.3424]
[1758644793525,13.67316997,219.32,219.24,11.3424]
[1758644793526,7.72,219.31,219.24,11.3424]
[1758644793923,7.72,219.31,219.25,4.1022]
[1758644794228,7.72,219.31,219.24,7.24]
[1758644795830,7.72,219.31,219.27,4.1019]
[1758644796531,7.72,219.33,219.27,4.1019]
[1758644796927,11.821,219.33,219.25,4.1023]
[1758644797129,7.72,219.33,219.25,4.1023]
[1758644797832,4.1012,219.31,219.25,4.1023]
[1758644798027,7.72,219.3,219.23,4.1027]
[1758644798331,11.8215,219.3,219.23,4.1027]
[1758644799033,7.72,219.3,219.2,7.24]
[1758644799833,7.72,219.3,219.25,4.1022]
[1758644800036,7.72,219.31,219.25,4.1022]
[1758644802238,11.8205,219.35,219.28,7.24]
[1758644802435,123.9805,219.35,219.27,4.1018]
[1758644802636,123.9805,219.35,219.24,7.24]
[1758644802931,137.84177275,219.35,219.24,7.24]
[1758644803736,137.84177275,219.35,219.27,4.1018]
[1758644805633,4.1008,219.34,219.27,4.1018]
[1758644806140,7.72,219.34,219.27,4.1018]
[1758644806936,4.101,219.33,219.27,4.1018]
[1758644809346,4.101,219.33,219.26,2.01831163]
[1758644810448,4.101,219.33,219.26,6.12031163]
[1758644813447,7.72,219.34,219.27,4.1018]
[1758644814052,11.8208,219.34,219.27,4.1018]
[1758644814551,7.72,219.34,219.27,4.1018]
[1758644814846,344.88,219.4,219.3,7.72]
[1758644815051,119.45,219.39,219.3,7.72]
[1758644815749,4.1002,219.37,219.3,7.72]
[1758644815949,9.34831163,219.38,219.29,2.01831163]
[1758644816446,7.33,219.37,219.26,9.73831163]
[1758644816653,2.01831163,219.38,219.26,9.73831163]
[1758644816950,7.33,219.37,219.26,9.73831163]
[1758644817145,13.33386985,219.37,219.26,9.73831163]
[1758644817341,11.4309,219.33,219.26,9.73831163]
[1758644817647,7.33,219.32,219.2,7.72]
[1758644817853,7.33,219.29,219.22,6.12111163]
[1758644818151,7.33,219.29,219.22,2.01831163]
[1758644818346,7.33,219.29,219.2,7.72]
[1758644818347,4.1023,219.26,219.2,7.72]
[1758644818946,7.33,219.27,219.2,7.72]
[1758644819451,64.1,219.31,219.23,7.72]
[1758644819648,7.33,219.32,219.25,9.73831163]
[1758644820054,7.33,219.32,219.25,7.72]
[1758644820650,7.33,219.32,219.23,2.01831163]
[1758644821642,7.33,219.32,219.24,7.72]
[1758644822851,7.33,219.32,219.25,4.1022]
[1758644824557,11.4312,219.32,219.24,7.72]
[1758644825458,11.4312,219.32,219.24,11.8224]
[1758644825751,7.33,219.32,219.24,7.72]
[1758644825951,7.33,219.32,219.26,6.12031163]
[1758644826155,7.33,219.32,219.26,13.84031163]
[1758644826364,7.33,219.32,219.2,7.72]
[1758644826655,7.33,219.32,219.25,7.72]
[1758644828757,7.33,219.32,219.26,4.102]
[1758644829856,4.1005,219.35,219.28,4.1017]
[1758644830061,7.33,219.37,219.3,2.01831163]
[1758644830756,7.33,219.37,219.3,6.11961163]
[1758644832460,7.33,219.37,219.31,4.1011]
[1758644833758,4.1003,219.36,219.3,2.01831163]
[1758644833967,7.33,219.37,219.3,2.01831163]
[1758644834357,7.33,219.37,219.3,6.11961163]
[1758644835365,7.33,219.37,219.33,2.01831163]
[1758644835670,7.09,219.41,219.34,6.95]
[1758644836263,7.09,219.41,219.35,2.01831163]
[1758644837766,7.09,219.41,219.35,6.11861163]
[1758644837958,7.09,219.41,219.35,2.01831163]
[1758644839372,7.09,219.39,219.35,2.01831163]
[1758644839971,4.0997,219.4,219.35,2.01831163]
[1758644840269,7.09,219.38,219.32,2.01831163]
[1758644840763,7.09,219.38,219.3,6.95]
[1758644840764,2.01831163,219.41,219.3,6.95]
[1758644841070,2.01831163,219.41,219.28,2.01831163]
[1758644841071,7.09,219.37,219.28,2.01831163]
[1758644841275,119.15,219.37,219.28,2.01831163]
[1758644841770,11.1912,219.31,219.26,6.95]
[1758644842365,7.09,219.29,219.25,2.01831163]
[1758644842666,7.09,219.29,219.22,8.96831163]
[1758644843971,11.1917,219.29,219.22,8.96831163]
[1758644844865,7.09,219.29,219.22,13.07101163]
[1758644845071,7.09,219.29,219.22,8.96831163]
[1758644845972,34.641,219.33,219.25,13.83051163]
[1758644846470,11.161,219.33,219.26,4.102]
[1758644846859,7.06,219.33,219.26,4.102]
[1758644847061,7.06,219.33,219.29,7.71]
[1758644847967,4.1004,219.36,219.29,7.71]
[1758644848169,7.06,219.35,219.29,7.71]
[1758644848369,11.1606,219.35,219.26,6.12041163]
[1758644848570,11.1606,219.35,219.26,2.01831163]
[1758644849771,11.1606,219.35,219.27,4.1018]
[1758644849971,7.06,219.35,219.29,2.01831163]
[1758644850872,7.06,219.35,219.29,6.11991163]
[1758644852973,7.06,219.35,219.29,4.1016]
[1758644853177,7.06,219.34,219.27,2.01831163]
[1758644853875,11.1608,219.34,219.27,2.01831163]
[1758644855075,11.1608,219.34,219.27,6.12011163]
[1758644855877,11.1608,219.34,219.27,2.01831163]
[1758644855878,4.101,219.33,219.27,2.01831163]
[1758644856076,7.06,219.34,219.27,2.01831163]
[1758644856272,7.06,219.34,219.29,2.01831163]
[1758644856478,7.06,219.34,219.29,9.72831163]
[1758644856675,7.06,219.34,219.29,13.82981163]
[1758644856973,7.06,219.36,219.29,13.82981163]
[1758644857279,7.06,219.41,219.34,2.01831163]
[1758644857474,4.0995,219.4,219.34,2.01831163]
[1758644858181,7.06,219.41,219.34,2.01831163]
[1758644859276,11.1595,219.41,219.33,2.01831163]
[1758644859780,7.06,219.41,219.32,7.71]
[1758644859980,7.06,219.4,219.29,2.01831163]
[1758644860682,7.06,219.36,219.3,2.01831163]
[1758644861285,11.1604,219.36,219.3,2.01831163]
[1758644863491,7.06,219.36,219.3,6.11951163]
[1758644863990,7.06,219.36,219.3,13.82951163]
[1758644864686,7.06,219.36,219.3,9.72831163]
[1758644865685,7.06,219.36,219.31,4.1011]
[1758644865986,7.06,219.4,219.31,11.8111]
[1758644866186,7.06961039,219.41,219.31,11.8111]
[1758644866491,11.1602,219.37,219.31,7.71]
[1758644867694,4.1004,219.36,219.31,7.71]
[1758644867893,7.06,219.35,219.31,7.71]
[1758644870094,7.06,219.39,219.29,7.71]
[1758644870486,7.06,219.39,219.32,3.15243885]
[1758644870689,4.0992,219.42,219.33,7.71]
[1758644870993,119.08,219.43,219.33,7.71]
[1758644871793,4.0997,219.4,219.33,11.8107]
[1758644871989,11.1597,219.4,219.33,11.8107]
[1758644873495,4.0998,219.39,219.33,11.8107]
[1758644873894,71.3955,219.42,219.3,4.1012]
[1758644874193,76.44679876,219.42,219.3,4.1012]
[1758644875595,4.1003,219.36,219.3,4.1012]
[1758644876498,11.73,219.38,219.3,4.1012]
[1758644877394,11.73,219.38,219.31,4.1011]
[1758644877698,11.73,219.38,219.31,11.1911]
[1758644878400,11.73,219.38,219.33,4.1008]
[1758644878597,11.73,219.38,219.34,7.09]
[1758644879294,4.1,219.38,219.34,7.09]
[1758644879490,4.1,219.38,219.3,11.1912]
[1758644879697,11.73,219.38,219.3,7.09]
[1758644880096,11.73,219.38,219.31,4.1011]
[1758644880895,11.73,219.38,219.32,4.1009]
[1758644881097,7.63,219.38,219.32,4.1009]
[1758644882601,7.63,219.38,219.33,11.1907]
[1758644882800,4.0994,219.41,219.32,3.15243885]
[1758644883092,4.0994,219.41,219.33,7.09]
[1758644883800,4.0994,219.41,219.35,4.1003]
[1758644883996,7.63,219.4,219.35,11.1903]
[1758644884298,7.63,219.39,219.33,4.1008]
[1758644884499,7.63,219.39,219.31,7.09]
[1758644884902,11.7298,219.39,219.32,4.1009]
[1758644885094,11.7298,219.39,219.31,7.09]
[1758644886806,11.7298,219.39,219.33,4.1007]
[1758644888400,11.7298,219.39,219.34,7.09]
[1758644888707,11.7298,219.39,219.33,11.1907]
[1758644889306,7.63,219.39,219.33,11.1907]
[1758644890204,7.63,219.39,219.33,7.09]
[1758644890407,119.63,219.43,219.33,7.09]
[1758644891408,123.729,219.43,219.35,4.1004]
[1758644892503,4.0992,219.42,219.35,4.1004]
[1758644894013,7.15,219.41,219.35,4.1004]
[1758644897106,7.15,219.41,219.33,7.09]
[1758644897713,7.15,219.45,219.33,7.09]
[1758644898109,7.15,219.45,219.39,4.0996]
[1758644898916,7.15,219.45,219.4,4.0994]
[1758644899315,7.15,219.45,219.41,7.44]
[1758644899815,7.15,219.47,219.4,7.44]
[1758644900916,11.2484,219.47,219.4,7.44]
[1758644901713,5.05129876,219.49,219.4,7.44]
[1758644901919,5.05129876,219.56,219.44,7.44]
[1758644902125,7.15,219.55,219.44,7.44]
[1758644902818,7.15,219.55,219.47,4.0981]
[1758644903011,7.15,219.55,219.47,11.5381]
[1758644903614,7.15,219.55,219.48,4.0979]
[1758644908413,11.2467,219.55,219.47,7.44]
[1758644909424,7.64,219.53,219.44,11.3487]
[1758644910318,7.64,219.53,219.45,4.0984]
[1758644910528,7.64,219.53,219.44,7.25]
[1758644910926,7.64,219.53,219.47,4.0982]
[1758644911425,7.64,219.53,219.46,7.25]
[1758644912830,11.7371,219.53,219.46,7.25]
[1758644913628,7.64,219.53,219.46,7.25]
[1758644914627,7.64,219.53,219.47,4.0982]
[1758644916534,7.64,219.53,219.46,7.25]
[1758644920332,7.64,219.53,219.46,11.3483]
[1758644921536,7.64,219.55,219.4,3.15243885]
[1758644921732,7.64,219.55,219.41,7.25]
[1758644922031,4.0978,219.5,219.41,11.3492]
[1758644922236,7.64,219.49,219.41,11.3492]
[1758644922537,71.38,219.51,219.35,7.25]
[1758644922726,7.64,219.44,219.37,4.1]
[1758644923733,7.64,219.44,219.35,11.3504]
[1758644924340,7.64,219.44,219.36,7.25253885]
[1758644926537,7.64,219.44,219.37,7.25]
[1758644927940,7.64,219.44,219.4,7.25]
[1758644928338,7.64,219.47,219.4,7.25]
[1758644930342,7.64,219.47,219.4,11.3494]
[1758644930543,7.64,219.47,219.42,2.01566264]
[1758644931244,4.0983,219.47,219.42,2.01566264]
[1758644931945,7.64,219.46,219.42,2.01566264]
[1758644932150,4.0983,219.47,219.42,2.01566264]
[1758644932539,7.64,219.46,219.42,2.01566264]
[1758644932744,4.0983,219.47,219.42,2.01566264]
[1758644933147,7.02,219.46,219.42,2.01566264]
[1758644933652,4.0983,219.47,219.42,2.01566264]
[1758644934348,7.02,219.46,219.42,2.01566264]
[1758644934545,4.0983,219.47,219.42,2.01566264]
[1758644934749,4.0986,219.46,219.42,2.01566264]
[1758644934951,7.02,219.45,219.4,2.01566264]
[1758644935744,4.0986,219.46,219.4,2.01566264]
[1758644935945,11.1186,219.46,219.4,2.01566264]
[1758644936246,7.02,219.46,219.36,4.1002]
[1758644936448,7.02,219.46,219.39,2.01566264]
[1758644936750,11.1185,219.46,219.39,2.01566264]
[1758644937050,7.02,219.46,219.39,2.01566264]
[1758644937748,4.0987,219.45,219.39,2.01566264]
[1758644939658,4.0989,219.44,219.39,2.01566264]
[1758644939860,7.02,219.46,219.39,2.01566264]
[1758644940556,11.1193,219.42,219.36,2.01566264]
[1758644940756,7.02,219.42,219.39,2.01566264]
[1758644941354,118.96,219.44,219.39,2.01566264]
[1758644941564,118.96,219.44,219.4,7.18]
[1758644942869,7.02,219.43,219.39,6.11526264]
[1758644943169,111.94,219.44,219.39,2.01566264]
[1758644943370,7.02,219.43,219.39,2.01566264]
[1758644943568,111.94,219.44,219.39,2.01566264]
[1758644943769,118.96,219.44,219.39,2.01566264]
[1758644943973,111.94,219.44,219.39,2.01566264]
[1758644944372,7.02,219.43,219.39,2.01566264]
[1758644945075,111.94,219.44,219.34,4.1006]
[1758644945269,111.94,219.44,219.23,71.38308266]
[1758644945270,7.02,219.43,219.35,2.01566264]
[1758644945870,7.02,219.43,219.32,2.01566264]
[1758644946666,11.1199,219.39,219.31,4.1011]
[1758644946864,7.02,219.37,219.33,9.19566264]
[1758644947065,11.1194,219.41,219.35,7.18]
[1758644947278,7.02,219.41,219.36,2.01566264]
[1758644947574,106.14,219.4,219.37,7.18]
[1758644947876,111.94,219.42,219.39,2.01566264]
[1758644948075,111.94,219.44,219.39,2.01566264]
[1758644948574,7.02,219.43,219.39,2.01566264]
[1758644948974,111.94,219.44,219.39,2.01566264]
[1758644949175,7.02,219.43,219.39,2.01566264]
[1758644949377,116.0389,219.44,219.39,2.01566264]
[1758644950573,7.02,219.43,219.39,2.01566264]
[1758644950772,116.0389,219.44,219.39,2.01566264]
[1758644950972,7.57,219.43,219.39,2.01566264]
[1758644951479,11.6691,219.43,219.37,2.01566264]
[1758644952570,7.57,219.43,219.37,2.01566264]
[1758644953582,4.0993,219.42,219.37,2.01566264]
[1758644953778,4.0993,219.42,219.34,4.1006]
[1758644953977,7.57,219.41,219.37,2.01566264]
[1758644954380,7.57,219.41,219.37,9.11566264]
[1758644955180,119.51,219.43,219.37,9.11566264]
[1758644956183,119.51,219.43,219.37,13.21566264]
[1758644962689,7.57,219.43,219.4,2.01566264]
[1758644962891,7.57,219.43,219.4,9.11566264]
[1758644965995,7.12,219.48,219.41,7.5]
[1758644966192,5.05129876,219.52,219.47,7.5]
[1758644966389,7.12,219.54,219.5,7.5]
[1758644966985,7.12,219.54,219.49,2.01566264]
[1758644967191,7.12,219.54,219.5,7.5]
[1758644968196,116.99129876,219.58,219.49,2.01566264]
[1758644968197,7.12,219.57,219.49,2.01566264]
[1758644969290,7.12,219.54,219.49,2.01566264]
[1758644969501,4.0969,219.55,219.49,2.01566264]
[1758644969997,4.0969,219.55,219.46,11.5984]
[1758644969998,7.12,219.54,219.48,2.01566264]
[1758644970188,11.2171,219.54,219.48,2.01566264]
[1758644970896,4.0973,219.53,219.48,2.01566264]
[1758644971300,7.12,219.52,219.48,2.01566264]
[1758644971694,7.12,219.51,219.42,7.5]
[1758644971896,7.12,219.51,219.43,2.01566264]
[1758644972693,7.12,219.47,219.43,2.01566264]
[1758644972899,7.12,219.5,219.4,2.01566264]
[1758644973800,4.0984,219.47,219.4,2.01566264]
[1758644974002,119.04,219.46,219.4,2.01566264]
[1758644975300,119.04,219.46,219.41,7.5]
[1758644975499,111.92,219.49,219.43,2.01566264]
[1758644982403,119.04,219.49,219.43,2.01566264]
[1758644984112,123.138,219.49,219.43,2.01566264]
[1758644989015,123.138,219.49,219.41,4.0992]
[1758644989016,4.0981,219.48,219.39,11.5996]
[1758644989217,7.12,219.47,219.41,2.01566264]
[1758644990218,11.2183,219.47,219.41,2.01566264]
[1758644992523,11.2183,219.47,219.39,11.5996]
[1758644993423,7.36,219.46,219.39,11.5996]
[1758644994125,11.4585,219.46,219.39,11.5996]
[1758644995321,7.36,219.45,219.36,3.14975609]
[1758644996323,111.9,219.48,219.35,11.4904]
[1758644996524,111.9,219.48,219.35,10.53975609]
[1758644996724,7.36,219.47,219.35,10.53975609]
[1758644996925,111.9,219.48,219.35,10.53975609]
[1758644997828,4.0989,219.44,219.35,10.53975609]
[1758644998033,7.36,219.43,219.35,10.53975609]
[1758644999030,7.36,219.45,219.36,7.39]
[1758644999629,111.9,219.46,219.36,7.39]
[1758644999931,7.36,219.45,219.36,7.39]
[1758645000130,4.0991,219.43,219.36,7.39]
[1758645000329,7.36,219.42,219.36,7.39]
[1758645001123,7.36,219.46,219.36,7.39]
[1758645001525,7.36,219.46,219.36,10.53975609]
[1758645001720,7.36,219.46,219.37,7.39]
[1758645002229,7.36,219.46,219.41,4.0992]
[1758645002419,7.36,219.47,219.41,4.0992]
[1758645003422,7.36,219.48,219.41,7.39]
[1758645004531,12.41129876,219.51,219.4,7.39]
[1758645004725,7.36,219.51,219.43,7.39]
[1758645006031,7.36,219.51,219.46,4.0982]
[1758645006336,11.4573,219.52,219.46,4.0982]
[1758645006522,119.26,219.53,219.47,4.0981]
[1758645006933,7.36,219.53,219.47,4.0981]
[1758645007232,119.24,219.53,219.47,4.0981]
[1758645007533,123.3372,219.53,219.45,11.4885]
[1758645007930,7.36,219.5,219.38,6.96666845]
[1758645008121,7.36,219.5,219.41,3.14975609]
[1758645008327,33.18,219.53,219.44,3.14975609]
[1758645008523,33.18,219.53,219.45,7.39]
[1758645008727,7.36,219.52,219.42,7.39]
[1758645009232,33.18,219.53,219.4,7.24925609]
[1758645009233,7.36,219.48,219.4,7.24925609]
[1758645009429,61.84,219.47,219.38,7.39]
[1758645009625,7.36,219.46,219.38,7.39]
[1758645009936,7.36,219.46,219.34,7.39]
[1758645011030,4.0987,219.45,219.35,4.1004]
[1758645011333,4.0987,219.45,219.35,3.14975609]
[1758645011540,7.36,219.46,219.4,4.0994]
[1758645011731,7.36,219.46,219.38,3.14975609]
[1758645012035,7.44,219.5,219.39,7.19]
[1758645012227,50.7978,219.5,219.42,4.099]
[1758645012928,46.7,219.5,219.38,3.14975609]
[1758645013133,5.05129876,219.49,219.38,3.14975609]
[1758645013334,12.49129876,219.48,219.37,7.19]
[1758645013536,11.539,219.44,219.37,7.19]
[1758645015835,7.44,219.44,219.38,4.0998]
[1758645017537,7.44,219.44,219.37,7.19]
[1758645018737,7.44,219.44,219.31,3.81691236]
[1758645018935,5.05129876,219.44,219.3,7.19]
[1758645019237,7.44,219.44,219.3,7.19]
[1758645019838,7.44,219.44,219.34,4.1005]
[1758645020235,7.44,219.44,219.33,7.19]
[1758645021934,7.44,219.44,219.35,4.1003]
[1758645022942,7.44,219.41,219.35,4.1003]
[1758645024140,7.44,219.41,219.33,11.2908]
[1758645024841,3.14975609,219.43,219.3,4.1012]
[1758645025035,7.66,219.42,219.3,4.1012]
[1758645025230,3.14975609,219.43,219.3,11.6212]
[1758645025432,7.66,219.42,219.3,11.6212]
[1758645025636,11.7599,219.39,219.31,4.1011]
[1758645026241,7.66,219.39,219.31,4.1011]
[1758645027343,7.66,219.39,219.3,7.52]
[1758645027538,5.05129876,219.45,219.31,7.52]
[1758645027745,34.64,219.44,219.32,3.14975609]
[1758645028038,38.7388,219.44,219.36,4.1003]
[1758645028237,38.7388,219.44,219.34,7.52]
[1758645030049,38.7388,219.44,219.37,4.0999]
[1758645032747,34.64,219.44,219.37,7.52]
[1758645033240,4.0981,219.48,219.38,3.14975609]
[1758645033437,7.66,219.48,219.39,7.52]
[1758645034243,7.66,219.48,219.4,4.0995]
[1758645034947,7.66,219.48,219.41,4.0992]
[1758645036846,7.66,219.48,219.42,4.099]
[1758645037052,7.66,219.48,219.39,7.52]
[1758645038747,52.2,219.51,219.42,7.52]
[1758645039747,52.2,219.51,219.46,4.0983]
[1758645039949,7.66,219.5,219.46,4.0983]
[1758645040150,7.66,219.5,219.42,7.52]
[1758645041248,7.66,219.5,219.36,10.66975609]
[1758645041754,7.66,219.45,219.39,4.0996]
[1758645042948,11.7587,219.45,219.37,4.1]
[1758645043152,7.66,219.45,219.37,4.1]
[1758645043656,7.66,219.45,219.38,4.0998]
[1758645044756,7.66,219.45,219.39,4.0995]
[1758645045154,7.66,219.45,219.41,11.6192]
[1758645045554,5.05129876,219.5,219.41,11.6192]
[1758645045755,7.66,219.49,219.41,11.6192]
[1758645045950,5.05129876,219.5,219.41,11.6192]
[1758645046158,7.66,219.49,219.41,11.6192]
[1758645046558,7.66,219.49,219.38,4.0998]
[1758645046758,7.66,219.49,219.37,7.52]
[1758645047557,4.0984,219.47,219.4,4.0994]
[1758645047864,7.66,219.46,219.37,7.52]
[1758645048759,7.66,219.46,219.38,4.0998]
[1758645049160,7.66,219.46,219.37,7.52]
[1758645050565,4.0989,219.44,219.37,7.52]
[1758645050768,7.66,219.43,219.37,7.52]
[1758645050968,7.66,219.43,219.33,10.66975609]
[1758645051170,7.66,219.4,219.34,4.1006]
[1758645051370,7.66,219.4,219.33,7.52]
[1758645051761,11.7596,219.4,219.33,7.52]
[1758645052069,7.66,219.4,219.33,7.52]
[1758645052364,7.66,219.37,219.29,11.33691236]
[1758645052562,7.66,219.37,219.29,7.52]
[1758645054074,7.66,219.37,219.3,4.1014]
[1758645054468,7.66,219.37,219.29,7.52]
[1758645055071,7.66,219.37,219.28,2.01791505]
[1758645055269,7.66,219.37,219.25,7.18]
[1758645055568,2.01791505,219.38,219.26,6.12001505]
[1758645055569,7.38,219.35,219.26,6.12001505]
[1758645056674,4.1007,219.34,219.26,6.12001505]
[1758645056873,7.38,219.33,219.26,2.01791505]
[1758645058576,7.38,219.33,219.25,7.18]
[1758645060075,7.38,219.33,219.24,2.01791505]
[1758645060575,5.05129876,219.39,219.24,7.18]
[1758645060779,7.38,219.35,219.24,7.18]
[1758645060974,8.08985653,219.35,219.24,7.18]
[1758645061479,8.08985653,219.35,219.26,4.1021]
[1758645062080,8.08985653,219.35,219.28,4.1018]
[1758645063279,8.08985653,219.35,219.31,7.18]
[1758645063479,7.38,219.34,219.3,4.1014]